bitfinex-derivatives/quotes_ETHF0:USTF0_20250210
["timestamp","ask_amount","ask_price","bid_price","bid_amount"]
[1739211227490,0.00559138,2681.3,2681.1,3.2078]
[1739211227689,0.00559138,2681.3,2680.8,3.2078]
[1739211228195,4.26927526,2681.2,2680.8,3.2078]
[1739211229886,0.00559138,2681.3,2681.1,3.2078]
[1739211231093,0.00559138,2681.3,2680.8,3.2078]
[1739211231288,0.00559138,2681.3,2681.1,3.2078]
[1739211233108,0.00559138,2681.3,2680.8,3.2078]
[1739211233296,4.11790928,2681.2,2680.8,3.2078]
[1739211233498,4.11790928,2681.2,2671.2,413.58136047]
[1739211233499,2.59653126,2681.0,2680.5,3.2078]
[1739211233708,0.5641,2680.9,2680.5,3.2078]
[1739211233901,4.87213491,2680.9,2680.5,3.2078]
[1739211236910,4.30803491,2680.9,2680.8,3.2078]
[1739211237207,1.1715,2681.1,2680.8,3.2078]
[1739211237903,6.63258789,2681.0,2680.8,3.2078]
[1739211238312,6.63258789,2681.0,2680.1,3.2078]
[1739211238707,2.59653126,2680.7,2680.1,3.2078]
[1739211238902,0.5677,2680.6,2680.1,3.2078]
[1739211239109,4.81564708,2680.6,2680.1,3.2078]
[1739211239309,0.5646,2680.5,2679.8,44.0078]
[1739211239508,1.1443,2680.5,2680.1,3.2078]
[1739211239809,4.24794708,2680.4,2680.1,3.2078]
[1739211244509,4.24794708,2680.4,2680.1,44.0078]
[1739211244901,0.5797,2680.9,2680.1,44.0078]
[1739211245109,1.1155,2681.2,2680.8,3.2078]
[1739211245307,0.57,2681.2,2680.9,0.55]
[1739211245516,4.60681488,2681.2,2680.9,0.55]
[1739211245809,4.03681488,2681.2,2680.9,0.55]
[1739211246513,3.21339138,2681.3,2681.1,3.2078]
[1739211246514,0.00559138,2681.3,2681.1,3.2078]
[1739211251117,4.12771876,2681.2,2680.9,0.55]
[1739211251310,4.68261876,2681.2,2680.9,0.55]
[1739211251510,5.25431876,2681.2,2680.9,0.55]
[1739211251707,5.25431876,2681.2,2680.6,3.2078]
[1739211251708,6.00008876,2681.2,2680.6,3.2078]
[1739211251911,2.59653126,2681.0,2680.6,3.2078]
[1739211252311,4.7254831,2680.9,2680.6,3.2078]
[1739211253620,7.93363123,2680.9,2680.6,3.2078]
[1739211254321,7.93363123,2680.9,2680.0,3.2078]
[1739211255517,7.93363123,2680.9,2680.0,3.2143]
[1739211255710,7.93363123,2680.9,2680.3,3.2078]
[1739211255914,4.7254831,2680.9,2680.3,3.2078]
[1739211262014,4.7254831,2680.9,2680.6,3.2078]
[1739211267025,7.93363123,2680.9,2680.1,3.2078]
[1739211268822,8.67946123,2680.9,2680.1,3.2078]
[1739211269030,8.67948123,2680.9,2680.1,3.2078]
[1739211269222,7.93363123,2680.9,2680.1,3.2078]
[1739211269725,8.67946123,2680.9,2680.1,3.2078]
[1739211269927,7.93363123,2680.9,2680.5,3.2078]
[1739211270521,4.7254831,2680.9,2680.5,3.2078]
[1739211275836,4.7254831,2680.9,2680.6,3.2078]
[1739211277837,2.60609756,2680.8,2680.6,3.2078]
[1739211278234,4.24670802,2680.7,2680.6,3.2078]
[1739211279428,4.24670802,2680.7,2680.3,3.2078]
[1739211281538,4.24397568,2680.7,2680.3,3.2078]
[1739211284031,1.1221,2680.6,2680.3,3.2078]
[1739211284431,4.146522,2680.5,2680.3,3.2078]
[1739211284837,0.5584,2680.4,2680.3,3.2078]
[1739211285241,4.80339793,2680.4,2680.3,3.2078]
[1739211288958,4.80339793,2680.4,2680.0,3.2078]
[1739211294853,4.80339793,2680.4,2679.9,1.1869]
[1739211296560,2.28116089,2680.3,2679.9,1.1869]
[1739211296753,6.23497089,2680.3,2679.6,3.7598]
[1739211296954,4.09582164,2680.2,2679.6,0.552]
[1739211297155,2.28116089,2680.0,2679.6,0.552]
[1739211297661,4.09582164,2679.9,2679.6,0.552]
[1739211297863,4.64312164,2679.9,2679.6,0.552]
[1739211298054,5.19622164,2679.9,2679.3,4.07282627]
[1739211298254,5.75092164,2679.9,2679.3,4.66652627]
[1739211298450,5.20181302,2679.9,2679.3,4.66652627]
[1739211298655,4.10141302,2679.9,2679.3,4.66652627]
[1739211298857,4.10141302,2679.9,2679.6,3.2078]
[1739211299059,0.00559138,2679.9,2679.6,3.2078]
[1739211300261,0.00559138,2679.9,2679.7,0.5902]
[1739211300658,0.00559138,2679.9,2679.8,0.5833]
[1739211302757,4.18474334,2679.9,2679.6,3.2078]
[1739211303055,2.28116089,2679.7,2679.3,3.7664]
[1739211303452,4.13501735,2679.6,2679.3,3.7664]
[1739211304264,4.13501735,2679.6,2678.9,3.2078]
[1739211304462,4.13501735,2679.6,2678.9,3.774]
[1739211304651,2.28116089,2679.4,2678.9,3.774]
[1739211305152,4.72063202,2679.3,2678.9,3.774]
[1739211305351,0.5767,2679.2,2678.9,3.774]
[1739211305758,4.11753202,2679.1,2678.9,3.774]
[1739211306657,6.04756089,2679.7,2678.9,3.774]
[1739211306861,3.41086089,2679.7,2678.9,3.774]
[1739211307258,2.28116089,2679.4,2678.9,3.774]
[1739211307765,4.16050256,2679.3,2678.9,3.774]
[1739211307965,0.5578,2679.2,2678.9,3.774]
[1739211308259,0.5578,2679.2,2678.4,9.18182923]
[1739211308260,0.5586,2679.1,2678.6,3.2078]
[1739211308465,4.86986487,2679.1,2678.6,3.783]
[1739211308761,4.86986487,2679.1,2678.5,0.5913]
[1739211308762,7.15102576,2679.1,2678.4,9.18182923]
[1739211309061,2.28116089,2678.8,2678.3,3.783]
[1739211309258,2.28116089,2678.5,2677.7,3.2078]
[1739211309465,1.1164,2678.4,2677.7,3.783]
[1739211309664,2.28116089,2678.2,2677.7,3.783]
[1739211310062,0.16998968,2678.1,2677.7,3.783]
[1739211310262,0.74308968,2678.1,2677.7,3.783]
[1739211310665,0.16998968,2678.1,2677.7,3.783]
[1739211310866,0.00559138,2678.3,2678.0,3.2078]
[1739211311266,0.00559138,2678.3,2678.1,0.5757]
[1739211314267,4.16770826,2678.2,2678.0,3.2078]
[1739211314859,0.00559138,2678.3,2678.0,3.2078]
[1739211317662,4.122437,2678.2,2678.0,3.2078]
[1739211318367,4.122437,2678.2,2677.8,0.5682]
[1739211318562,4.725437,2678.2,2677.8,0.5682]
[1739211319562,4.725437,2678.2,2678.0,3.2078]
[1739211322067,0.598,2678.1,2678.0,3.2078]
[1739211322471,4.74241573,2678.1,2678.0,3.2078]
[1739211324763,4.74241573,2678.1,2677.5,0.5679]
[1739211324764,7.95021573,2678.1,2677.5,0.5679]
[1739211325164,7.95021573,2678.1,2677.3,0.5941]
[1739211325165,2.28116089,2677.9,2677.3,0.5941]
[1739211325469,2.28116089,2677.9,2677.5,3.2078]
[1739211325666,4.19854301,2677.8,2677.5,3.2078]
[1739211325861,0.603,2678.2,2677.5,3.2078]
[1739211326067,0.00559138,2678.3,2678.1,3.2078]
[1739211326369,0.00559138,2678.3,2678.2,0.5941]
[1739211327065,3.93670174,2678.3,2677.8,3.2078]
[1739211327259,2.28116089,2678.1,2677.8,3.2078]
[1739211327465,0.5482,2678.0,2677.8,3.2078]
[1739211327664,4.47931036,2678.0,2677.8,3.2078]
[1739211327860,3.93111036,2678.0,2677.8,3.2078]
[1739211330373,0.5477,2678.2,2677.8,3.2078]
[1739211330683,4.2773123,2678.1,2677.8,3.2078]
[1739211333573,6.55847319,2678.1,2677.8,3.2078]
[1739211333771,0.588,2678.0,2677.8,3.2078]
[1739211333976,0.588,2678.0,2677.5,3.8019]
[1739211334176,4.17514306,2677.9,2677.5,3.8019]
[1739211334778,3.2078,2677.7,2676.9,3.2078]
[1739211335077,5.48896089,2677.5,2677.0,0.5611]
[1739211335386,0.5629,2677.4,2677.0,0.5611]
[1739211335770,4.87915104,2677.4,2676.6,3.7531]
[1739211335972,4.87915104,2677.4,2676.3,3.2078]
[1739211335973,2.28116089,2676.9,2676.3,3.2078]
[1739211336166,2.28116089,2676.6,2676.3,3.2078]
[1739211336581,5.65292058,2676.8,2676.3,3.2078]
[1739211336983,1.7538,2676.8,2676.4,0.5699]
[1739211337283,3.95744387,2676.7,2676.4,0.5699]
[1739211338175,3.95744387,2676.7,2676.4,1.1382]
[1739211339873,0.00560203,2676.9,2676.6,3.2078]
[1739211340384,4.15150283,2676.8,2676.6,3.2078]
[1739211340978,0.00560203,2676.9,2676.6,3.2078]
[1739211341785,0.00560203,2676.9,2676.7,40.8]
[1739211342380,4.05107263,2676.8,2676.7,40.8]
[1739211342683,5.20477263,2676.8,2676.4,1.1382]
[1739211344586,4.05107263,2676.8,2676.7,3.2078]
[1739211344783,0.00560203,2676.9,2676.7,3.2078]
[1739211346379,3.2078,2677.5,2676.8,2.28116089]
[1739211346582,3.2078,2677.5,2677.1,3.2078]
[1739211346785,4.02703676,2677.4,2677.1,3.2078]
[1739211347681,5.48896089,2678.4,2677.4,0.74679]
[1739211347888,5.48896089,2678.4,2678.0,3.2078]
[1739211348086,3.88444983,2678.3,2678.0,3.2078]
[1739211349783,0.5926,2678.2,2678.0,3.2078]
[1739211350188,6.50042744,2678.1,2678.0,3.2078]
[1739211350588,6.50042744,2678.1,2677.4,4.9148]
[1739211350890,2.28116089,2677.8,2677.3,0.5856]
[1739211351284,3.92032256,2677.7,2677.3,0.5856]
[1739211351480,3.92032256,2677.7,2677.1,3.2078]
[1739211351788,3.92032256,2677.7,2677.6,3.2078]
[1739211352189,2.28116089,2678.1,2677.6,3.2078]
[1739211352690,0.5926,2678.2,2677.6,3.2078]
[1739211352691,3.94806242,2678.0,2677.6,3.2078]
[1739211352987,3.94806242,2678.1,2677.7,0.5813]
[1739211353291,0.5926,2678.2,2677.7,0.5813]
[1739211353789,4.22482309,2678.1,2677.7,0.5813]
[1739211354390,4.22482309,2678.1,2677.9,3.2078]
[1739211356094,4.22482309,2678.1,2677.9,3.21033651]
[1739211359191,4.22482309,2678.1,2678.0,0.5627]
[1739211359692,0.00560203,2678.4,2678.0,0.5627]
[1739211359991,4.17985215,2678.3,2678.2,3.2078]
[1739211364788,0.00560203,2678.4,2678.2,3.2078]
[1739211366393,0.00560203,2678.4,2678.2,4.9138]
[1739211369787,4.25661338,2678.3,2678.2,4.9138]
[1739211371288,4.25661338,2678.3,2678.2,3.2078]
[1739211371489,4.25661338,2678.3,2677.9,0.00253651]
[1739211371787,1.695,2678.2,2677.9,0.00253651]
[1739211372189,4.006021,2678.1,2677.9,0.00253651]
[1739211372693,6.28718189,2678.1,2677.9,0.00253651]
[1739211374795,4.006021,2678.1,2677.9,0.00253651]
[1739211375091,0.00560203,2678.4,2677.9,0.00253651]
[1739211375293,0.00560203,2678.4,2678.2,3.2078]
[1739211375790,0.00560203,2678.4,2678.3,40.8]
[1739211375988,0.00560203,2678.4,2678.0,0.5912]
[1739211376189,0.00560203,2678.4,2678.2,3.2078]
[1739211376389,0.00560203,2678.4,2678.3,40.8]
[1739211376698,0.00560203,2678.4,2678.2,3.2078]
[1739211377400,3.88538576,2678.3,2677.9,3.77023651]
[1739211377595,3.88538576,2678.3,2677.9,3.21033651]
[1739211378199,6.16995321,2678.3,2677.9,3.21033651]
[1739211378491,6.16995321,2678.3,2677.9,0.00253651]
[1739211378693,2.28456745,2678.0,2677.5,3.2078]
[1739211378897,3.2078,2678.1,2677.1,3.7563]
[1739211378898,2.28456745,2677.7,2677.1,3.7563]
[1739211379299,4.17250762,2677.6,2677.1,3.7563]
[1739211380097,3.91679872,2677.8,2677.1,3.7563]
[1739211380493,3.2078,2677.8,2677.1,3.7563]
[1739211380794,3.99483139,2677.9,2677.0,0.00560203]
[1739211380795,7.23633079,2677.5,2677.0,0.00560203]
[1739211380999,3.2078,2677.5,2677.0,0.00560203]
[1739211381202,2.81353139,2677.3,2677.0,0.00560203]
[1739211381499,0.5773,2677.2,2677.0,0.00560203]
[1739211381698,4.23466304,2677.2,2677.0,0.00560203]
[1739211382099,1.1729,2677.5,2677.0,0.00560203]
[1739211382300,3.2078,2677.4,2677.0,0.00560203]
[1739211382497,4.28216632,2677.3,2677.0,0.00560203]
[1739211382698,4.87886632,2677.3,2677.0,0.00560203]
[1739211382898,0.5967,2677.3,2677.0,0.00560203]
[1739211383100,4.28216632,2677.2,2677.0,0.00560203]
[1739211386097,3.2078,2677.1,2677.0,0.00560203]
[1739211386499,7.25726229,2677.1,2677.0,0.00560203]
[1739211388705,13.25726229,2677.1,2677.0,0.00560203]
[1739211389002,7.25726229,2677.1,2677.0,0.00560203]
[1739211392099,7.25726229,2677.1,2676.7,3.2078]
[1739211396698,7.25726229,2677.1,2676.7,3.7575]
[1739211398313,0.74693,2677.0,2676.6,0.00560203]
[1739211398604,1.162,2676.9,2676.6,0.00560203]
[1739211399006,0.5804,2676.8,2676.6,0.00560203]
[1739211399405,3.92951528,2676.7,2676.6,0.00560203]
[1739211400708,2.12951528,2676.7,2676.6,0.00560203]
[1739211403912,2.12951528,2676.7,2676.6,3.21340203]
[1739211404211,0.00560203,2677.0,2676.6,5.50096282]
[1739211404407,0.00560203,2677.0,2676.9,3.2078]
[1739211406013,3.2078,2677.9,2676.9,3.2078]
[1739211406314,4.33009187,2677.5,2677.2,3.2078]
[1739211406709,2.28756079,2677.8,2677.2,3.2078]
[1739211407100,4.33009187,2677.7,2677.2,3.2078]
[1739211407912,4.33009187,2677.7,2677.5,3.2078]
[1739211408416,0.00560203,2677.8,2677.6,0.5649]
[1739211409311,0.00560203,2677.8,2677.7,0.5924]
[1739211410616,4.11729782,2677.8,2677.7,0.5924]
[1739211411307,6.40485861,2677.8,2677.5,3.2078]
[1739211412012,6.99785861,2677.8,2677.5,3.2078]
[1739211412212,8.15185861,2677.8,2677.5,3.2078]
[1739211413816,7.59505861,2677.8,2677.5,3.2078]
[1739211414013,4.11729782,2677.8,2677.5,3.2078]
[1739211414519,0.00560203,2677.8,2677.5,5.49536079]
[1739211416116,3.2078,2678.5,2677.5,5.49536079]
[1739211416315,3.2078,2678.5,2677.8,3.2078]
[1739211416517,4.20250745,2678.3,2677.9,1.1284]
[1739211416718,3.2078,2678.5,2677.9,1.1284]
[1739211417129,6.49006824,2678.4,2677.9,0.5693]
[1739211417333,6.49006824,2678.4,2677.9,0.57490203]
[1739211418634,4.20250745,2678.4,2677.9,0.57490203]
[1739211419224,4.20250745,2678.4,2678.0,0.5964]
[1739211419425,4.20250745,2678.4,2678.1,3.2078]
[1739211419731,0.00560203,2678.5,2678.1,5.49536079]
[1739211419932,0.00560203,2678.5,2678.4,5.49536079]
[1739211420129,2.28756079,2679.3,2678.4,5.49536079]
[1739211420334,2.28756079,2679.3,2678.9,3.2078]
[1739211420633,4.07571246,2679.2,2678.9,3.2078]
[1739211422338,0.00560203,2679.3,2678.9,3.2078]
[1739211422339,0.00560203,2679.3,2679.0,2.28756079]
[1739211422530,2.28756079,2680.2,2679.2,3.2078]
[1739211422729,3.2078,2680.3,2679.8,3.2078]
[1739211422929,4.25567547,2680.1,2679.5,3.2078]
[1739211423127,4.25567547,2680.2,2679.5,3.2078]
[1739211423332,5.49536079,2680.3,2679.5,3.2078]
[1739211423736,4.19505168,2680.2,2679.6,0.00560203]
[1739211424340,4.19505168,2680.2,2680.1,3.2078]
[1739211424539,0.00560203,2680.2,2680.1,3.2078]
[1739211426636,0.00560203,2680.2,2680.1,3.7907]
[1739211430847,0.00560203,2680.2,2680.1,3.2078]
[1739211432250,0.00560203,2680.2,2679.7,3.7539]
[1739211432654,4.13925456,2680.1,2679.7,3.7539]
[1739211432852,4.71485456,2680.1,2679.7,3.2078]
[1739211433648,3.2078,2680.0,2679.6,0.00560203]
[1739211433853,2.28756079,2680.0,2679.6,0.00560203]
[1739211434048,4.08104617,2679.9,2679.6,0.00560203]
[1739211434344,0.5761,2679.8,2679.6,0.00560203]
[1739211434558,0.577,2679.7,2679.6,0.00560203]
[1739211434855,4.79522476,2679.7,2679.6,0.00560203]
[1739211435056,4.79522476,2679.7,2679.0,3.2078]
[1739211435254,7.08278555,2679.7,2679.0,3.2078]
[1739211436156,7.08278555,2679.7,2679.1,0.00560203]
[1739211438351,4.79522476,2679.7,2679.1,0.00560203]
[1739211439346,7.08278555,2679.7,2679.1,0.00560203]
[1739211439541,3.03382079,2679.4,2679.1,0.00560203]
[1739211439750,3.8018,2679.3,2679.1,0.00560203]
[1739211439947,8.87410527,2679.3,2679.1,0.00560203]
[1739211440344,4.92000527,2679.3,2679.1,0.00560203]
[1739211441349,4.92000527,2679.3,2678.6,3.2078]
[1739211442252,2.28756079,2679.1,2678.6,3.2078]
[1739211442454,1.1389,2679.0,2678.6,3.21340203]
[1739211442760,3.2078,2678.9,2678.6,0.00560203]
[1739211443151,6.30565573,2678.8,2678.6,0.00560203]
[1739211444750,0.74647,2678.6,2677.9,3.2078]
[1739211444957,2.28756079,2678.4,2677.7,0.5464]
[1739211445153,1.1177,2678.3,2677.7,0.5464]
[1739211445357,5.4153453,2678.3,2677.7,0.5464]
[1739211445554,4.2976453,2678.3,2678.1,3.2078]
[1739211446363,4.2976453,2678.3,2678.2,0.5657]
[1739211448357,3.97989588,2678.4,2678.1,3.2078]
[1739211448557,0.55150203,2678.5,2678.1,3.2078]
[1739211448957,4.18470434,2678.4,2678.1,3.2078]
[1739211449156,6.47226513,2678.4,2678.1,3.2078]
[1739211449456,6.47226513,2678.4,2677.9,0.00560203]
[1739211450859,2.28756079,2678.1,2677.9,0.00560203]
[1739211451059,1.1612,2678.0,2677.9,0.00560203]
[1739211451253,6.05580775,2678.0,2677.9,0.00560203]
[1739211451655,5.37302397,2678.0,2677.4,3.2078]
[1739211451864,2.28756079,2677.5,2676.6,3.2078]
[1739211452164,2.28756079,2677.2,2676.6,3.2078]
[1739211452467,0.5648,2677.1,2676.6,3.2078]
[1739211452657,4.86922668,2677.1,2676.6,3.2078]
[1739211452859,5.42582871,2677.1,2676.6,3.21340203]
[1739211453061,2.28756079,2676.9,2676.6,0.00560203]
[1739211453460,4.28081493,2676.8,2676.6,0.00560203]
[1739211454164,4.28081493,2677.0,2676.6,0.00560203]
[1739211454356,4.28081493,2677.0,2676.6,3.21340203]
[1739211455866,2.81507057,2676.9,2676.6,3.21340203]
[1739211456256,4.00139205,2676.8,2676.6,3.21340203]
[1739211456661,4.00139205,2676.8,2676.6,0.00560203]
[1739211456964,4.00139205,2676.8,2675.9,0.5878]
[1739211457162,0.551,2676.7,2675.9,0.5878]
[1739211457369,2.81507057,2676.6,2675.9,0.5878]
[1739211457568,6.82893745,2676.6,2675.9,0.5878]
[1739211458868,4.01386688,2676.6,2675.9,0.5878]
[1739211461473,6.82893745,2676.6,2675.9,0.5878]
[1739211462267,2.81507057,2676.3,2675.8,3.2078]
[1739211462469,1.1291,2676.2,2675.8,3.2078]
[1739211462672,5.3689033,2676.2,2675.8,3.2078]
[1739211466272,5.3689033,2676.2,2675.5,3.2078]
[1739211466573,5.3689033,2676.2,2675.4,0.5647]
[1739211466574,6.02287057,2676.0,2675.4,0.5647]
[1739211466777,2.81507057,2675.7,2675.4,0.5647]
[1739211467073,4.16247176,2675.6,2675.4,0.5647]
[1739211467668,4.32376861,2675.8,2675.4,0.5647]
[1739211467871,0.5557,2675.9,2675.4,0.5647]
[1739211468165,4.32376861,2675.8,2675.4,0.5647]
[1739211470572,2.81507057,2676.0,2675.4,0.5647]
[1739211470773,4.1689858,2675.9,2675.4,0.5647]
[1739211470977,6.02287057,2676.0,2675.4,0.5647]
[1739211471274,4.1689858,2675.9,2675.4,0.5647]
[1739211475680,2.28924207,2675.8,2675.4,0.5647]
[1739211476078,4.05630166,2675.7,2675.4,0.5647]
[1739211478888,3.9191282,2675.9,2675.4,0.5647]
[1739211479089,3.9191282,2676.0,2675.4,0.5647]
[1739211479384,2.28924207,2675.8,2675.4,0.5647]
[1739211479782,4.02927774,2675.7,2675.4,0.5647]
[1739211480678,4.02927774,2675.7,2675.6,3.2078]
[1739211481084,4.0709444,2676.0,2675.6,3.2078]
[1739211481282,6.36018647,2676.1,2675.6,3.2078]
[1739211481283,2.28924207,2676.1,2675.6,3.2078]
[1739211481586,4.31731415,2676.0,2675.6,3.2078]
[1739211483082,5.49704207,2675.7,2675.0,3.2078]
[1739211483282,2.28924207,2675.2,2675.0,3.2078]
[1739211483589,4.22861366,2675.1,2675.0,3.2078]
[1739211483775,4.80721366,2675.1,2675.0,3.2078]
[1739211484181,4.22861366,2675.1,2675.0,3.2078]
[1739211484590,4.00680072,2675.3,2675.0,3.2078]
[1739211484882,4.00680072,2675.3,2675.1,0.5734]
[1739211485087,4.00680072,2675.4,2675.1,0.5734]
[1739211485287,2.86784207,2675.5,2675.1,0.5734]
[1739211485484,4.00680072,2675.4,2675.1,0.5734]
[1739211485982,4.00680072,2675.4,2675.3,3.2078]
[1739211486185,4.30863295,2675.5,2675.3,3.2078]
[1739211486378,0.00560203,2675.6,2675.3,3.2078]
[1739211486782,3.93257306,2675.5,2675.3,3.2078]
[1739211486985,6.22181513,2675.5,2675.3,3.2078]
[1739211487489,0.5685,2675.4,2675.3,3.2078]
[1739211487882,4.71200315,2675.4,2675.3,3.2078]
[1739211488083,4.71200315,2675.4,2674.9,0.5932]
[1739211488282,2.28924207,2675.2,2674.9,0.5932]
[1739211488791,4.13931597,2675.1,2674.9,0.5932]
[1739211490387,4.13931597,2675.1,2674.8,3.2078]
[1739211492794,2.28924207,2674.9,2674.5,3.2078]
[1739211492996,2.28924207,2674.6,2674.5,3.2078]
[1739211493291,4.20481747,2674.8,2674.5,3.2078]
[1739211493492,4.13931597,2674.6,2674.5,3.2078]
[1739211493691,2.85144207,2674.9,2674.5,3.2078]
[1739211493897,4.10708999,2674.8,2674.5,3.2078]
[1739211494190,2.85144207,2674.9,2674.5,3.2078]
[1739211494392,4.10708999,2674.8,2674.5,3.2078]
[1739211496086,2.28924207,2674.6,2674.2,0.5788]
[1739211496283,2.28924207,2674.3,2673.8,3.2078]
[1739211496488,2.28924207,2674.0,2673.8,3.2078]
[1739211496885,3.98410721,2673.9,2673.5,1.1428]
[1739211497189,3.98410721,2673.9,2673.5,0.5565]
[1739211497893,3.98410721,2673.9,2673.6,3.2078]
[1739211498094,3.98410721,2673.9,2673.6,3.7934]
[1739211499498,4.08004962,2674.1,2673.6,3.7934]
[1739211499693,2.28924207,2674.0,2673.6,3.7934]
[1739211499997,3.94922942,2673.9,2673.6,3.2078]
[1739211500489,2.28924207,2673.7,2672.9,3.2078]
[1739211500693,2.28924207,2673.3,2672.9,3.2078]
[1739211501091,4.03428424,2673.2,2672.9,3.2078]
[1739211501394,2.28924207,2673.9,2672.9,3.2078]
[1739211501694,2.28924207,2673.9,2672.7,3.59515207]
[1739211501695,3.9862927,2673.4,2673.3,3.2078]
[1739211502097,2.28924207,2673.6,2673.3,3.2078]
[1739211502394,2.28924207,2673.6,2672.7,0.5578]
[1739211502395,3.9862927,2673.4,2672.9,3.2078]
[1739211502699,2.28924207,2673.2,2672.9,3.2078]
[1739211502996,0.595,2673.1,2672.9,3.2078]
[1739211503602,4.20401272,2673.0,2672.9,3.2078]
[1739211506702,4.19957385,2673.0,2672.9,3.2078]
[1739211513308,4.76597385,2673.0,2672.9,3.2078]
[1739211513706,5.51403385,2673.0,2672.3,0.6025]
[1739211513905,2.28924207,2672.7,2672.3,1.1566]
[1739211514209,3.94168666,2672.6,2672.3,4.3644]
[1739211514414,3.94168666,2672.6,2671.6,3.2078]
[1739211514415,2.28924207,2672.4,2671.6,3.2078]
[1739211514704,2.28924207,2671.8,2671.3,3.2078]
[1739211514911,2.28924207,2671.8,2671.3,3.7619]
[1739211515210,4.06354381,2671.7,2671.6,3.2078]
[1739211515502,0.5664,2672.0,2671.6,3.2078]
[1739211516006,3.95131595,2671.9,2671.6,3.2078]
[1739211518504,0.5664,2672.4,2671.7,0.5546]
[1739211518806,4.29588709,2672.3,2672.2,3.2078]
[1739211520904,0.00560203,2672.9,2672.2,3.2078]
[1739211521104,0.00560203,2672.9,2672.0,1.707]
[1739211521105,0.00560203,2672.9,2672.6,3.2078]
[1739211521312,0.00560203,2672.9,2672.7,2.88564207]
[1739211521504,0.00560203,2672.9,2672.8,40.8]
[1739211522005,0.5505,2673.8,2672.7,5.14544207]
[1739211522211,0.5928,2674.0,2673.6,3.2078]
[1739211522411,4.12162461,2673.7,2673.6,3.2078]
[1739211522611,4.12162461,2673.8,2673.6,3.2078]
[1739211522811,4.71442461,2674.0,2673.6,3.2078]
[1739211522812,0.5928,2674.0,2673.6,3.2078]
[1739211523001,4.03675708,2673.9,2673.6,3.2078]
[1739211523201,4.05571349,2673.7,2673.6,3.2078]
[1739211523407,0.5928,2674.0,2673.6,3.2078]
[1739211523610,4.05571349,2673.9,2673.6,3.2078]
[1739211523803,2.82113937,2673.9,2673.5,0.00561272]
[1739211524113,0.6054,2673.8,2673.5,0.00561272]
[1739211524510,4.01505873,2673.7,2673.5,0.00561272]
[1739211525914,0.00561272,2674.1,2673.6,3.2078]
[1739211526312,4.32695033,2673.9,2673.6,3.2078]
[1739211526614,0.00561272,2674.1,2673.6,3.2078]
[1739211527012,4.26581232,2674.0,2673.6,3.2078]
[1739211527217,2.82113937,2673.9,2673.6,3.2078]
[1739211527617,4.84911232,2673.8,2673.5,0.00561272]
[1739211527810,0.6011,2673.7,2673.5,0.00561272]
[1739211528316,4.04071199,2673.6,2673.5,0.00561272]
[1739211531312,0.00561272,2674.1,2673.5,0.00561272]
[1739211531616,4.25282922,2673.8,2673.6,3.2078]
[1739211531815,4.25282922,2673.8,2673.6,3.7709]
[1739211532013,1.1206,2673.9,2673.6,3.2078]
[1739211532314,4.25282922,2673.7,2673.6,3.2078]
[1739211532515,4.81832922,2673.9,2673.6,3.2078]
[1739211532718,0.00561272,2674.1,2673.7,0.5631]
[1739211532913,3.99156262,2673.8,2673.7,0.5631]
[1739211533312,0.00561272,2674.1,2673.7,0.5631]
[1739211533713,3.99156262,2673.8,2673.6,3.2078]
[1739211534021,3.2078,2674.0,2673.5,0.00561272]
[1739211534318,3.99873426,2673.7,2673.5,0.00561272]
[1739211534505,3.99873426,2673.8,2673.5,0.00561272]
[1739211534709,1.0917,2673.6,2673.5,0.00561272]
[1739211535117,4.99703413,2673.6,2673.5,0.00561272]
[1739211535614,11.0259735,2673.6,2673.5,0.00561272]
[1739211537214,2.82113937,2673.3,2672.7,0.5561]
[1739211537717,4.69245213,2673.2,2672.7,0.5561]
[1739211539111,4.10125213,2673.2,2672.7,0.5561]
[1739211540122,2.37776824,2674.0,2672.7,0.5561]
[1739211540123,0.00561272,2674.1,2672.9,3.2078]
[1739211540322,0.00561272,2674.1,2673.4,3.2078]
[1739211540323,0.5626,2674.0,2673.4,3.2078]
[1739211540622,4.29277934,2673.9,2673.5,0.5603]
[1739211540831,4.29277934,2674.0,2673.7,3.2078]
[1739211541027,0.00561272,2674.1,2673.7,3.2078]
[1739211541222,0.00561272,2674.1,2674.0,3.2078]
[1739211546022,3.96689857,2674.1,2674.0,3.2078]
[1739211548129,3.96689857,2674.1,2673.6,3.2078]
[1739211548327,3.96689857,2674.1,2673.9,3.2078]
[1739211550436,0.00561272,2674.1,2673.9,3.2078]
[1739211551137,4.28420758,2674.0,2673.5,4.3726]
[1739211553530,4.28420758,2674.0,2673.8,3.2078]
[1739211555833,4.28420758,2674.0,2673.9,40.8]
[1739211556540,4.28420758,2674.0,2673.8,3.2078]
[1739211557140,4.28420758,2674.0,2673.8,44.0078]
[1739211558034,4.28420758,2674.0,2673.8,3.2078]
[1739211561845,4.28420758,2674.0,2673.8,5.49963855]
[1739211562047,0.00561272,2674.1,2673.9,0.74776]
[1739211562344,0.00561272,2674.1,2673.8,5.49963855]
[1739211562345,0.00561272,2674.1,2674.0,0.5982]
[1739211564347,1.1533,2674.9,2674.0,6.5982]
[1739211564538,0.5816,2675.3,2674.7,3.2078]
[1739211564733,0.5816,2675.3,2674.3,2.29183855]
[1739211564734,1.1317,2675.3,2675.2,3.2078]
[1739211564939,5.38853156,2675.3,2675.2,3.2078]
[1739211566743,5.38853156,2675.3,2675.0,0.00561272]
[1739211566944,2.89353855,2675.2,2675.0,0.00561272]
[1739211567139,6.10133855,2675.2,2675.0,0.00561272]
[1739211567344,4.29401003,2675.1,2675.0,0.00561272]
[1739211568037,4.29401003,2675.1,2674.3,3.2078]
[1739211568240,0.74759,2674.6,2674.0,3.2078]
[1739211568449,3.46523855,2674.5,2673.7,3.7871]
[1739211568643,7.77676727,2674.5,2673.7,3.7871]
[1739211569337,5.48492872,2674.5,2674.1,3.2078]
[1739211570039,7.77676727,2674.5,2673.7,3.7871]
[1739211570542,4.31152872,2674.5,2674.1,3.2078]
[1739211571047,0.5707,2674.4,2674.1,3.2078]
[1739211571246,1.1627,2674.4,2674.1,3.2078]
[1739211571546,4.15848228,2674.3,2674.1,3.2078]
[1739211573648,4.15848228,2674.3,2673.7,3.7871]